[Event "45th National Sub Junior 2019"]
[Site "Tiruchengode"]
[Date "2019.07.12"]
[Round "6.2"]
[White "Rohith Krishna S"]
[Black "Kushagra Mohan"]
[Result "1-0"]
[ECO "E05"]
[WhiteElo "2312"]
[BlackElo "2250"]
[Annotator "NA"]
[PlyCount "61"]
[EventDate "2019.07.09"]
[EventCountry "IND"]
[SourceTitle "playchess.com"]
[Source "ChessBase"]
[SourceQuality "1"]
[TimeControl "5400+30"]

1. Nf3 {[%emt 0:00:01]} Nf6 {[%emt 0:00:00]} 2. g3 {[%emt 0:00:07]} d5 {[%emt 0:00:01]} 3. d4 {[%emt 0:00:09]} e6 {[%emt 0:00:07]} 4. Bg2 {[%emt 0:00:06]} Be7 {[%emt 0:00:05]} 5. O-O {[%emt 0:00:06]} O-O {[%emt 0:00:07]} 6. c4 {[%emt 0:00:04]} dxc4 {[%emt 0:00:05]} 7. Nc3 {[%emt 0:00:53]} c5 {[%emt 0:03:32]} 8. dxc5 {[%emt 0:00:25]} Qa5 {[%emt 0:03:07]} 9. Qd4 {[%emt 0:04:21]} Nc6 {[%emt 0:07:03]} 10. Qxc4 {[%emt 0:02:17]} Qxc5 {[%emt 0:00:06]} 11. Qxc5 {[%emt 0:05:16]} Bxc5 {[%emt 0:00:02]} 12. Bf4 {[%emt 0:00:08]} Nh5 {[%emt 0:02:09]} 13. Bc7 {[%emt 0:04:51]} Nf6 {[%emt 0:06:01]} 14. Rfd1 {[%emt 0:07:59]} Bd7 {[%emt 0:03:10]} 15. Rac1 {[%emt 0:11:34]} Rac8 {[%emt 0:02:59]} 16. Bf4 {[%emt 0:11:35]} Rfd8 {[%emt 0:05:39]} 17. Nb5 {[%emt 0:02:30]} Ne4 {[%emt 0:17:36]} 18. Nfd4 {[%emt 0:15:18]} Nxd4 {[%emt 0:03:21]} 19. Nxd4 {[%emt 0:00:06]} f5 {[%emt 0:04:31]} 20. Bxe4 {[%emt 0:03:33]} fxe4 {[%emt 0:00:19]} 21. Nb3 {[%emt 0:01:57]} Bb6 {[%emt 0:03:28]} 22. Bg5 {[%emt 0:06:45]} Rf8 {[%emt 0:09:14]} 23. Rxd7 {[%emt 0:00:13]} Rxc1+ {[%emt 0:00:05]} 24. Bxc1 {[%emt 0:04:22]} Rxf2 {[%emt 0:00:27]} 25. e3 {[%emt 0:00:07]} Re2 {[%emt 0:02:19]} 26. Rd2 {[%emt 0:03:34]} Re1+ {[%emt 0:01:35]} 27. Kf2 {[%emt 0:00:12]} Rh1 {[%emt 0:00:36]} 28. Kg2 {[%emt 0:00:04]} Re1 {[%emt 0:00:06]} 29. Rc2 {[%emt 0:00:03]} Bxe3 {[%emt 0:00:31]} 30. Bxe3 {[%emt 0:00:08]} Rxe3 {[%emt 0:00:03]} 31. Kf2 {[%emt 0:00:05]} 1-0

[Event "45th National Sub Junior 2019"]
[Site "Tiruchengode"]
[Date "2019.07.12"]
[Round "6.3"]
[White "Ajay Karthikeyan"]
[Black "Pranav Vijay"]
[Result "0-1"]
[ECO "E14"]
[WhiteElo "2216"]
[BlackElo "2265"]
[Annotator "ChessBase"]
[PlyCount "60"]
[EventDate "2019.07.09"]
[EventCountry "IND"]
[SourceTitle "playchess.com"]
[Source "ChessBase"]
[SourceQuality "1"]
[TimeControl "5400+30"]

1. Nf3 {[%emt 0:00:00]} Nf6 {[%emt 0:00:00]} 2. b3 {[%emt 0:00:00]} e6 {[%emt 0:02:09]} 3. Bb2 {[%emt 0:01:11]} d5 {[%emt 0:00:13]} 4. e3 {[%emt 0:00:04]} b6 {[%emt 0:00:14]} 5. d4 {[%emt 0:01:33]} Bd6 {[%emt 0:01:26]} 6. Bd3 {[%emt 0:00:10]} Bb7 {[%emt 0:01:17]} 7. O-O {[%emt 0:00:11]} O-O {[%emt 0:01:10]} 8. c4 {[%emt 0:00:14]} Nbd7 {[%emt 0:01:44]} 9. Nbd2 {[%emt 0:01:28]} Ne4 {[%emt 0:05:49]} 10. Rc1 {[%emt 0:02:30]} f5 {[%emt 0:02:35]} 11. cxd5 {[%emt 0:01:55]} exd5 {[%emt 0:00:41]} 12. Ne5 {[%emt 0:09:18]} Qe7 {[%emt 0:06:22]} 13. f4 {[%emt 0:03:33]} Ndf6 {[%emt 0:02:56]} 14. Bb5 {[%emt 0:16:00]} a6 {[%emt 0:05:41]} 15. Bc6 {[%emt 0:03:39]} Bxc6 {[%emt 0:01:15]} 16. Nxc6 {[%emt 0:06:47]} Qe8 {[%emt 0:00:31]} 17. Nxe4 {[%emt 0:01:52]} Nxe4 {[%emt 0:05:50]} 18. b4 {[%emt 0:04:48]} Kh8 {[%emt 0:01:49]} 19. a3 {[%emt 0:09:49]} Rf6 {[%emt 0:01:05]} 20. Qe2 {[%emt 0:07:05]} Bxf4 {[%emt 0:02:20]} 21. Ne5 {[%emt 0:03:56]} Bxh2+ {[%emt 0:00:38]} 22. Kxh2 {[%emt 0:00:43]} Rh6+ {[%emt 0:00:10]} 23. Kg1 {[%emt 0:00:04]} Rh1+ {[%emt 0:00:06]} 24. Kxh1 {[%emt 0:00:04]} Ng3+ {[%emt 0:00:06]} 25. Kg1 {[%emt 0:00:57]} Nxe2+ {[%emt 0:00:06]} 26. Kf2 {[%emt 0:00:01]} Nxc1 {[%emt 0:00:25]} 27. Rxc1 {[%emt 0:00:01]} Rc8 {[%emt 0:00:51]} 28. Rc6 {[%emt 0:00:02]} Qh5 {[%emt 0:00:32]} 29. Bc3 {[%emt 0:00:36]} Qh4+ {[%emt 0:00:27]} 30. Ke2 {[%emt 0:00:26]} Qe4 {[%emt 0:00:16]} 0-1

[Event "45th National Sub Junior 2019"]
[Site "Tiruchengode"]
[Date "2019.07.12"]
[Round "6.4"]
[White "Soham Kamotra"]
[Black "Aaryan Varshney"]
[Result "1/2-1/2"]
[ECO "A29"]
[WhiteElo "2136"]
[BlackElo "2284"]
[Annotator "NA"]
[PlyCount "186"]
[EventDate "2019.07.09"]
[EventCountry "IND"]
[SourceTitle "playchess.com"]
[Source "ChessBase"]
[SourceQuality "1"]
[TimeControl "5400+30"]

1. c4 {[%emt 0:00:00]} e5 {[%emt 0:00:00]} 2. g3 {[%emt 0:00:00]} Nf6 {[%emt 0:00:19]} 3. Bg2 {[%emt 0:00:00]} d5 {[%emt 0:00:52]} 4. cxd5 {[%emt 0:00:00]} Nxd5 {[%emt 0:00:06]} 5. Nc3 {[%emt 1:32:30]} Nb6 {[%emt 0:00:06]} 6. Nf3 {[%emt 0:00:00]} Nc6 {[%emt 0:00:03]} 7. O-O {[%emt 0:00:00]} Be7 {[%emt 0:00:03]} 8. d3 {[%emt 0:00:00]} O-O {[%emt 0:00:12]} 9. a3 {[%emt 0:00:00]} Be6 {[%emt 0:00:09]} 10. b4 {[%emt 0:00:00]} a5 {[%emt 0:00:07]} 11. b5 {[%emt 0:00:00]} Nd4 {[%emt 0:00:08]} 12. Nd2 {[%emt 0:00:00]} c6 {[%emt 0:00:28]} 13. bxc6 {[%emt 0:00:00]} Nxc6 {[%emt 0:00:15]} 14. Rb1 {[%emt 0:00:00]} Rb8 {[%emt 0:02:26]} 15. Nde4 {[%emt 0:00:00]} Nd5 {[%emt 0:06:19]} 16. Nxd5 {[%emt 0:00:00]} Bxd5 {[%emt 0:00:19]} 17. Rb5 {[%emt 0:00:00]} Kh8 {[%emt 0:06:31]} 18. Nc3 {[%emt 0:00:00]} Bxg2 {[%emt 0:02:06]} 19. Kxg2 {[%emt 0:00:00]} f6 {[%emt 0:07:00]} 20. Qa4 {[%emt 0:00:00]} Qd6 {[%emt 0:07:46]} 21. Rd5 {[%emt 0:00:00]} Qe6 {[%emt 0:00:33]} 22. Be3 {[%emt 0:00:00]} Bb4 {[%emt 0:05:20]} 23. axb4 {[%emt 0:00:00]} axb4 {[%emt 0:00:09]} 24. Bc5 {[%emt 0:00:00]} bxc3 {[%emt 0:02:23]} 25. Rd6 {[%emt 0:00:00]} Qe8 {[%emt 0:00:51]} 26. Rxc6 {[%emt 0:00:00]} Rf7 {[%emt 0:04:31]} 27. Bd6 {[%emt 0:00:00]} Ra8 {[%emt 0:01:12]} 28. Qxa8 {[%emt 0:00:00]} Qxa8 {[%emt 0:00:10]} 29. Rxc3 {[%emt 0:00:00]} h6 {[%emt 0:02:43]} 30. Rfc1 {[%emt 0:00:00]} Kh7 {[%emt 0:01:51]} 31. f3 {[%emt 0:00:00]} Rd7 {[%emt 0:03:39]} 32. Ra3 {[%emt 0:00:00]} Qd8 {[%emt 0:00:39]} 33. Bc5 {[%emt 0:00:00]} Rd5 {[%emt 0:03:57]} 34. Rb3 {[%emt 0:00:00]} Qa5 {[%emt 0:00:33]} 35. Ba3 {[%emt 0:00:00]} b5 {[%emt 0:02:34]} 36. Rcb1 {[%emt 0:00:00]} h5 {[%emt 0:04:38]} 37. Bb4 {[%emt 0:00:00]} Qb6 {[%emt 0:02:11]} 38. Be1 {[%emt 0:00:00]} f5 {[%emt 0:02:40]} 39. Bf2 {[%emt 0:00:00]} Qc6 {[%emt 0:00:59]} 40. e4 {[%emt 0:00:00]} fxe4 {[%emt 0:00:35]} 41. dxe4 {[%emt 0:00:00]} Rd2 {[%emt 0:00:35]} 42. Rxb5 {[%emt 0:00:00]} h4 {[%emt 0:02:47]} 43. R5b2 {[%emt 0:00:00]} h3+ {[%emt 0:00:35]} 44. Kxh3 {[%emt 0:00:00]} Rxb2 {[%emt 0:05:26]} 45. Rxb2 {[%emt 0:00:00]} Qc3 {[%emt 0:00:01]} 46. Ra2 {[%emt 0:00:57]} Qxf3 {[%emt 0:01:58]} 47. Bg1 {[%emt 0:00:02]} Kg6 {[%emt 0:02:46]} 48. Rf2 {[%emt 0:01:08]} Qxe4 {[%emt 0:00:17]} 49. g4 {[%emt 0:00:38]} Qd3+ {[%emt 0:00:20]} 50. Kg2 {[%emt 0:00:11]} e4 {[%emt 0:00:06]} 51. Rf5 {[%emt 0:00:26]} Kh7 {[%emt 0:03:24]} 52. Rh5+ {[%emt 0:05:03]} Kg8 {[%emt 0:00:10]} 53. Rh3 {[%emt 0:00:05]} Qe2+ {[%emt 0:00:29]} 54. Bf2 {[%emt 0:00:01]} Qxg4+ {[%emt 0:00:06]} 55. Rg3 {[%emt 0:00:03]} Qf5 {[%emt 0:00:19]} 56. Bd4 {[%emt 0:00:34]} g6 {[%emt 0:00:06]} 57. Be3 {[%emt 0:00:58]} Kf7 {[%emt 0:00:09]} 58. Bf2 {[%emt 0:00:17]} Ke6 {[%emt 0:00:08]} 59. Be3 {[%emt 0:00:05]} Qh5 {[%emt 0:00:53]} 60. Bf2 {[%emt 0:00:34]} Kf5 {[%emt 0:00:48]} 61. Be3 {[%emt 0:00:57]} Qe2+ {[%emt 0:00:25]} 62. Kg1 {[%emt 0:00:50]} Ke5 {[%emt 0:00:29]} 63. Rg5+ {[%emt 0:00:10]} Kf6 {[%emt 0:00:42]} 64. Rg3 {[%emt 0:00:05]} Qd1+ {[%emt 0:00:30]} 65. Kg2 {[%emt 0:00:09]} Qc2+ {[%emt 0:00:03]} 66. Kg1 {[%emt 0:00:14]} Kf7 {[%emt 0:00:11]} 67. Bf2 {[%emt 0:00:12]} Qc6 {[%emt 0:00:14]} 68. Be3 {[%emt 0:00:39]} Qf6 {[%emt 0:00:08]} 69. Kg2 {[%emt 0:03:33]} Ke6 {[%emt 0:00:09]} 70. Bf2 {[%emt 0:00:26]} Kd5 {[%emt 0:00:17]} 71. Kg1 {[%emt 0:00:32]} Kc4 {[%emt 0:00:33]} 72. Re3 {[%emt 0:00:20]} Qf5 {[%emt 0:00:32]} 73. Rg3 {[%emt 0:00:13]} Qf4 {[%emt 0:00:42]} 74. Be3 {[%emt 0:00:31]} Qd6 {[%emt 0:00:17]} 75. Bf2 {[%emt 0:00:08]} Qd1+ {[%emt 0:00:09]} 76. Kg2 {[%emt 0:00:02]} Qe2 {[%emt 0:00:13]} 77. Re3 {[%emt 0:00:31]} Qg4+ {[%emt 0:00:07]} 78. Rg3 {[%emt 0:00:05]} Qf5 {[%emt 0:00:04]} 79. Kg1 {[%emt 0:00:14]} g5 {[%emt 0:00:03]} 80. Re3 {[%emt 0:01:02]} g4 {[%emt 0:00:07]} 81. Rg3 {[%emt 0:00:06]} Qf4 {[%emt 0:00:10]} 82. Kg2 {[%emt 0:00:30]} Qc1 {[%emt 0:00:33]} 83. Re3 {[%emt 0:01:41]} Kd5 {[%emt 0:00:15]} 84. Rg3 {[%emt 0:00:22]} Ke5 {[%emt 0:00:03]} 85. Be3 {[%emt 0:02:38]} Qc2+ {[%emt 0:00:08]} 86. Kg1 {[%emt 0:00:06]} Kf5 {[%emt 0:00:02]} 87. Bf2 {[%emt 0:00:25]} Qe2 {[%emt 0:00:09]} 88. Re3 {[%emt 0:02:29]} Qd1+ {[%emt 0:00:03]} 89. Kg2 {[%emt 0:00:06]} Kf4 {[%emt 0:00:08]} 90. Ra3 {[%emt 0:01:11]} Qd2 {[%emt 0:00:28]} 91. Rg3 {[%emt 0:00:15]} Qe2 {[%emt 0:00:25]} 92. Ra3 {[%emt 0:00:09]} Qc2 {[%emt 0:00:34]} 93. Rg3 {[%emt 0:00:09]} e3 {[%emt 0:28:51]} 1/2-1/2

[Event "45th National Sub Junior 2019"]
[Site "Tiruchengode"]
[Date "2019.07.12"]
[Round "6.5"]
[White "Sanket Chakravarty"]
[Black "Pranesh M"]
[Result "1-0"]
[ECO "E17"]
[WhiteElo "2107"]
[BlackElo "2343"]
[Annotator "NA"]
[PlyCount "95"]
[EventDate "2019.07.09"]
[EventCountry "IND"]
[SourceTitle "playchess.com"]
[Source "ChessBase"]
[SourceQuality "1"]
[TimeControl "5400+30"]

1. c4 {[%emt 0:00:00]} Nf6 {[%emt 0:00:00]} 2. g3 {[%emt 0:00:00]} e6 {[%emt 0:00:00]} 3. Bg2 {[%emt 0:00:00]} d5 {[%emt 0:00:00]} 4. Nf3 {[%emt 0:00:00]} Be7 {[%emt 0:00:00]} 5. O-O {[%emt 0:00:10]} O-O {[%emt 0:00:00]} 6. b3 {[%emt 0:00:09]} c5 {[%emt 0:00:00]} 7. cxd5 {[%emt 0:00:33]} exd5 {[%emt 0:00:28]} 8. d4 {[%emt 0:00:35]} b6 {[%emt 0:00:40]} 9. Nc3 {[%emt 0:00:53]} Bb7 {[%emt 0:00:14]} 10. Bb2 {[%emt 0:02:10]} Nbd7 {[%emt 0:01:43]} 11. dxc5 {[%emt 0:01:48]} bxc5 {[%emt 0:01:35]} 12. Ne1 {[%emt 0:00:18]} Nb6 {[%emt 0:01:14]} 13. Nd3 {[%emt 0:00:36]} Rb8 {[%emt 0:02:45]} 14. e3 {[%emt 0:04:30]} Bd6 {[%emt 0:14:02]} 15. Nb5 {[%emt 0:04:59]} Be7 {[%emt 0:10:03]} 16. Be5 {[%emt 0:18:14]} Rc8 {[%emt 0:06:46]} 17. Nxa7 {[%emt 0:08:07]} Ra8 {[%emt 0:00:32]} 18. Nb5 {[%emt 0:00:21]} Qd7 {[%emt 0:01:56]} 19. a4 {[%emt 0:13:13]} Ne4 {[%emt 0:07:20]} 20. Bc7 {[%emt 0:06:44]} Ra6 {[%emt 0:06:17]} 21. Rc1 {[%emt 0:05:12]} Na8 {[%emt 0:06:54]} 22. Bxe4 {[%emt 0:07:38]} Nxc7 {[%emt 0:00:20]} 23. Nxc5 {[%emt 0:02:57]} Bxc5 {[%emt 0:01:45]} 24. Rxc5 {[%emt 0:00:06]} Nxb5 {[%emt 0:02:37]} 25. axb5 {[%emt 0:01:54]} Rd6 {[%emt 0:01:44]} 26. Bg2 {[%emt 0:00:29]} Rd8 {[%emt 0:00:40]} 27. Qd4 {[%emt 0:00:34]} Rb6 {[%emt 0:00:42]} 28. Rxd5 {[%emt 0:01:13]} Bxd5 {[%emt 0:00:28]} 29. Qxb6 {[%emt 0:00:05]} Bxb3 {[%emt 0:00:48]} 30. Qc6 {[%emt 0:03:12]} Qe7 {[%emt 0:00:37]} 31. b6 {[%emt 0:00:13]} h6 {[%emt 0:00:20]} 32. Qc7 {[%emt 0:01:23]} Qf8 {[%emt 0:00:23]} 33. b7 {[%emt 0:00:11]} Be6 {[%emt 0:00:29]} 34. Ra1 {[%emt 0:01:07]} Kh7 {[%emt 0:00:21]} 35. h4 {[%emt 0:01:00]} Rb8 {[%emt 0:01:37]} 36. Ra8 {[%emt 0:00:22]} Qb4 {[%emt 0:00:35]} 37. Qc2+ {[%emt 0:00:12]} g6 {[%emt 0:00:18]} 38. Rxb8 {[%emt 0:00:03]} Bf5 {[%emt 0:00:06]} 39. Qxf5 {[%emt 0:00:50]} gxf5 {[%emt 0:00:45]} 40. Re8 {[%emt 0:00:23]} Qe1+ {[%emt 0:00:13]} 41. Bf1 {[%emt 0:00:15]} Qb1 {[%emt 0:00:04]} 42. b8=Q {[%emt 0:18:21]} Qxb8 {[%emt 0:00:04]} 43. Rxb8 {[%emt 0:00:00]} Kg7 {[%emt 0:00:03]} 44. Bc4 {[%emt 0:00:00]} Kg6 {[%emt 0:00:41]} 45. h5+ {[%emt 0:00:00]} Kg5 {[%emt 0:00:05]} 46. f4+ {[%emt 0:00:00]} Kg4 {[%emt 0:00:04]} 47. Kg2 {[%emt 0:00:00]} f6 {[%emt 0:00:12]} 48. Be2# {[%emt 0:00:00]} 1-0

[Event "45th National Sub Junior 2019"]
[Site "Tiruchengode"]
[Date "2019.07.12"]
[Round "6.6"]
[White "Samant Aditya S"]
[Black "Abhinessh S"]
[Result "1-0"]
[ECO "B01"]
[WhiteElo "2296"]
[BlackElo "1898"]
[Annotator "NA"]
[PlyCount "76"]
[EventDate "2019.07.09"]
[EventCountry "IND"]
[SourceTitle "playchess.com"]
[Source "ChessBase"]
[SourceQuality "1"]
[TimeControl "5400+30"]

1. e4 {[%emt 0:00:00]} d5 {[%emt 0:01:14]} 2. exd5 {[%emt 0:00:00]} Qxd5 {[%emt 0:00:09]} 3. Nc3 {[%emt 0:00:00]} Qa5 {[%emt 0:00:11]} 4. Bc4 {[%emt 0:00:00]} Nf6 {[%emt 0:00:31]} 5. d3 {[%emt 0:00:08]} c6 {[%emt 0:02:06]} 6. Bd2 {[%emt 0:00:11]} Qc7 {[%emt 0:01:43]} 7. Qe2 {[%emt 0:01:17]} Bf5 {[%emt 0:03:46]} 8. h3 {[%emt 0:06:25]} h6 {[%emt 0:07:20]} 9. g4 {[%emt 0:09:46]} Bh7 {[%emt 0:00:14]} 10. f4 {[%emt 0:02:16]} Nbd7 {[%emt 0:29:51]} 11. Nf3 {[%emt 0:07:57]} e6 {[%emt 0:05:31]} 12. Ne5 {[%emt 0:18:12]} Nxe5 {[%emt 0:05:33]} 13. fxe5 {[%emt 0:00:35]} Nd7 {[%emt 0:00:47]} 14. Bf4 {[%emt 0:01:12]} g5 {[%emt 0:01:22]} 15. Bh2 {[%emt 0:01:31]} Bb4 {[%emt 0:21:56]} 16. O-O {[%emt 0:17:43]} Bxc3 {[%emt 0:03:42]} 17. bxc3 {[%emt 0:00:09]} Nb6 {[%emt 0:00:11]} 18. Bb3 {[%emt 0:00:56]} O-O-O {[%emt 0:02:13]} 19. Rf6 {[%emt 0:05:15]} Nd5 {[%emt 0:00:34]} 20. Bxd5 {[%emt 0:05:46]} cxd5 {[%emt 0:00:09]} 21. Qf2 {[%emt 0:00:10]} Bg6 {[%emt 0:05:13]} 22. Qxa7 {[%emt 0:01:42]} h5 {[%emt 0:00:36]} 23. Qd4 {[%emt 0:07:35]} hxg4 {[%emt 0:00:56]} 24. hxg4 {[%emt 0:00:10]} Rh3 {[%emt 0:02:06]} 25. Kg2 {[%emt 0:00:08]} Rdh8 {[%emt 0:00:57]} 26. Bg3 {[%emt 0:00:13]} Qc6 {[%emt 0:03:23]} 27. Rb1 {[%emt 0:00:58]} Kc7 {[%emt 0:00:13]} 28. a4 {[%emt 0:00:15]} b6 {[%emt 0:00:56]} 29. a5 {[%emt 0:00:36]} b5 {[%emt 0:00:16]} 30. Rff1 {[%emt 0:04:37]} R3h7 {[%emt 0:00:07]} 31. a6 {[%emt 0:05:43]} Qb6 {[%emt 0:00:59]} 32. Qxb6+ {[%emt 0:02:27]} Kxb6 {[%emt 0:00:06]} 33. Ra1 {[%emt 0:00:03]} Ra8 {[%emt 0:00:59]} 34. a7 {[%emt 0:01:15]} Kc6 {[%emt 0:00:35]} 35. Bf2 {[%emt 0:00:58]} d4 {[%emt 0:00:30]} 36. Bxd4 {[%emt 0:00:21]} Rh4 {[%emt 0:00:20]} 37. Kg3 {[%emt 0:00:36]} Kd5 {[%emt 0:00:42]} 38. Ra6 {[%emt 0:01:54]} Bh7 {[%emt 0:01:02]} 1-0

[Event "45th National Sub Junior 2019"]
[Site "Tiruchengode"]
[Date "2019.07.12"]
[Round "6.7"]
[White "Vignesh, N."]
[Black "Rathneesh R"]
[Result "0-1"]
[ECO "B47"]
[WhiteElo "1882"]
[BlackElo "2226"]
[Annotator "NA"]
[PlyCount "42"]
[EventDate "2019.07.09"]
[EventCountry "IND"]
[SourceTitle "playchess.com"]
[Source "ChessBase"]
[SourceQuality "1"]
[TimeControl "5400+30"]

1. e4 {[%emt 1:30:30]} c5 {[%emt 0:00:00]} 2. Nf3 {[%emt 0:00:00]} e6 {[%emt 0:00:09]} 3. Nc3 {[%emt 0:00:00]} Nc6 {[%emt 0:01:01]} 4. d4 {[%emt 0:00:00]} cxd4 {[%emt 0:00:07]} 5. Nxd4 {[%emt 0:00:00]} Qc7 {[%emt 0:00:33]} 6. g3 {[%emt 0:00:00]} a6 {[%emt 0:02:03]} 7. a4 {[%emt 0:00:00]} Nf6 {[%emt 0:03:55]} 8. Bg2 {[%emt 0:00:00]} Nxd4 {[%emt 0:01:51]} 9. Qxd4 {[%emt 0:00:00]} Bc5 {[%emt 0:00:16]} 10. Qd3 {[%emt 0:00:00]} Ng4 {[%emt 0:04:01]} 11. O-O {[%emt 0:00:00]} d6 {[%emt 0:05:57]} 12. Qe2 {[%emt 0:00:00]} Ne5 {[%emt 0:03:33]} 13. Kh1 {[%emt 0:00:00]} O-O {[%emt 0:04:34]} 14. f4 {[%emt 0:00:00]} Nc6 {[%emt 0:02:39]} 15. Be3 {[%emt 0:00:00]} Qb6 {[%emt 0:06:45]} 16. Nd1 {[%emt 0:00:00]} d5 {[%emt 0:17:08]} 17. exd5 {[%emt 0:00:00]} exd5 {[%emt 0:00:17]} 18. Bxd5 {[%emt 0:00:00]} Bh3 {[%emt 0:06:14]} 19. Re1 {[%emt 0:00:00]} Rae8 {[%emt 0:06:15]} 20. Qf2 {[%emt 0:00:34]} Nb4 {[%emt 0:09:20]} 21. a5 {[%emt 0:04:24]} Qc7 {[%emt 0:09:57]} 0-1

[Event "45th National Sub Junior 2019"]
[Site "Tiruchengode"]
[Date "2019.07.12"]
[Round "6.8"]
[White "Ilamparthi A R"]
[Black "Banerjee, Ashutosh"]
[Result "1-0"]
[ECO "D00"]
[WhiteElo "2036"]
[BlackElo "1849"]
[Annotator "NA"]
[PlyCount "43"]
[EventDate "2019.07.09"]
[EventCountry "IND"]
[SourceTitle "playchess.com"]
[Source "ChessBase"]
[SourceQuality "1"]
[TimeControl "5400+30"]

1. d4 {[%emt 0:00:00]} d5 {[%emt 0:00:00]} 2. Nc3 {[%emt 0:00:00]} Nf6 {[%emt 0:00:03]} 3. Bf4 {[%emt 0:00:06]} e6 {[%emt 0:00:30]} 4. e3 {[%emt 0:00:23]} Bd6 {[%emt 0:02:50]} 5. Nf3 {[%emt 0:00:14]} O-O {[%emt 0:02:51]} 6. Ne5 {[%emt 0:00:30]} a6 {[%emt 0:02:35]} 7. Bd3 {[%emt 0:03:33]} c5 {[%emt 0:01:33]} 8. g4 {[%emt 0:21:57]} Nc6 {[%emt 0:05:24]} 9. g5 {[%emt 0:15:06]} Bxe5 {[%emt 0:00:49]} 10. Bxe5 {[%emt 0:01:38]} Nxe5 {[%emt 0:03:19]} 11. dxe5 {[%emt 0:00:34]} Nd7 {[%emt 0:00:37]} 12. f4 {[%emt 0:01:06]} b5 {[%emt 0:01:11]} 13. Qh5 {[%emt 0:13:14]} g6 {[%emt 0:00:12]} 14. Qh6 {[%emt 0:00:03]} c4 {[%emt 0:05:39]} 15. f5 {[%emt 0:02:39]} exf5 {[%emt 0:07:06]} 16. Nxd5 {[%emt 0:00:09]} Kh8 {[%emt 0:00:10]} 17. O-O-O {[%emt 0:15:12]} cxd3 {[%emt 0:11:03]} 18. Rxd3 {[%emt 0:00:12]} Qe8 {[%emt 0:07:46]} 19. e4 {[%emt 0:06:24]} Qxe5 {[%emt 0:08:46]} 20. Nf6 {[%emt 0:00:20]} Nxf6 {[%emt 0:00:11]} 21. gxf6 {[%emt 0:00:11]} Rg8 {[%emt 0:04:29]} 22. Qxh7+ {[%emt 0:00:10]} 1-0

[Event "45th National Sub Junior 2019"]
[Site "Tiruchengode"]
[Date "2019.07.12"]
[Round "6.9"]
[White "Komal, Srivatsav Sajja"]
[Black "Srikrishnan P"]
[Result "1/2-1/2"]
[ECO "D00"]
[WhiteElo "1832"]
[BlackElo "1990"]
[Annotator "NA"]
[PlyCount "91"]
[EventDate "2019.07.09"]
[EventCountry "IND"]
[SourceTitle "playchess.com"]
[Source "ChessBase"]
[SourceQuality "1"]
[TimeControl "5400+30"]

1. d4 {[%emt 0:00:00]} Nf6 {[%emt 0:04:05]} 2. Bf4 {[%emt 0:00:00]} d5 {[%emt 0:00:06]} 3. e3 {[%emt 0:00:00]} c5 {[%emt 0:00:05]} 4. c3 {[%emt 0:00:00]} Nc6 {[%emt 0:00:05]} 5. Nd2 {[%emt 0:00:00]} Bf5 {[%emt 0:00:14]} 6. Qb3 {[%emt 0:00:11]} Qc8 {[%emt 0:00:33]} 7. Ngf3 {[%emt 0:00:15]} e6 {[%emt 0:00:05]} 8. Ne5 {[%emt 0:00:28]} h6 {[%emt 0:05:42]} 9. Bb5 {[%emt 0:01:35]} Nd7 {[%emt 0:05:09]} 10. Ndf3 {[%emt 0:00:54]} f6 {[%emt 0:02:00]} 11. Bxc6 {[%emt 0:03:03]} bxc6 {[%emt 0:00:49]} 12. Nxd7 {[%emt 0:00:22]} Qxd7 {[%emt 0:00:11]} 13. O-O {[%emt 0:00:54]} Be7 {[%emt 0:02:00]} 14. c4 {[%emt 0:02:28]} O-O {[%emt 0:03:34]} 15. Rac1 {[%emt 0:02:09]} Rac8 {[%emt 0:05:50]} 16. Rc3 {[%emt 0:01:37]} cxd4 {[%emt 0:04:35]} 17. Nxd4 {[%emt 0:00:42]} Bg6 {[%emt 0:01:19]} 18. Rfc1 {[%emt 0:16:35]} e5 {[%emt 0:06:14]} 19. cxd5 {[%emt 0:00:04]} cxd5 {[%emt 0:00:13]} 20. Nc6 {[%emt 0:00:19]} Bd6 {[%emt 0:13:48]} 21. Bg3 {[%emt 0:09:23]} Bf7 {[%emt 0:02:20]} 22. Qa4 {[%emt 0:01:34]} Rc7 {[%emt 0:04:13]} 23. b4 {[%emt 0:03:27]} Rfc8 {[%emt 0:04:04]} 24. b5 {[%emt 0:00:44]} Kh8 {[%emt 0:04:19]} 25. Qa6 {[%emt 0:04:34]} Re8 {[%emt 0:06:54]} 26. h3 {[%emt 0:01:07]} d4 {[%emt 0:12:23]} 27. Rd3 {[%emt 0:07:22]} Bg6 {[%emt 0:01:45]} 28. Rd2 {[%emt 0:03:30]} d3 {[%emt 0:00:56]} 29. Rc4 {[%emt 0:03:32]} Qe6 {[%emt 0:02:06]} 30. Qa4 {[%emt 0:02:53]} e4 {[%emt 0:01:38]} 31. Bxd6 {[%emt 0:02:32]} Qxd6 {[%emt 0:00:30]} 32. Qb4 {[%emt 0:02:31]} Qe6 {[%emt 0:02:13]} 33. a4 {[%emt 0:01:26]} Rec8 {[%emt 0:01:10]} 34. Rd1 {[%emt 0:01:53]} f5 {[%emt 0:00:27]} 35. Rd4 {[%emt 0:00:26]} Rxc6 {[%emt 0:05:22]} 36. bxc6 {[%emt 0:00:29]} Qxc6 {[%emt 0:00:03]} 37. Kh2 {[%emt 0:01:13]} Bh5 {[%emt 0:00:18]} 38. Rd2 {[%emt 0:00:42]} Qc7+ {[%emt 0:00:26]} 39. Qd6 {[%emt 0:00:26]} Qc3 {[%emt 0:00:55]} 40. Qe6 {[%emt 0:03:11]} Rf8 {[%emt 0:00:28]} 41. Qe7 {[%emt 0:01:26]} Re8 {[%emt 0:00:01]} 42. Qb4 {[%emt 0:00:28]} Qc7+ {[%emt 0:00:01]} 43. Qd6 {[%emt 0:00:46]} Qc3 {[%emt 0:00:01]} 44. Qb4 {[%emt 0:10:34]} Qc7+ {[%emt 0:00:01]} 45. Qd6 {[%emt 0:01:57]} Qc3 {[%emt 0:00:01]} 46. Qb4 {[%emt 0:00:22]} 1/2-1/2